fUST/lending_fUST_20260122
["ID","MTS","AMOUNT","RATE_DAILY","PERIOD"]
[403011022,1769057445974,-1151.82724462,0.0002,5]
[403011023,1769057445984,-1000.0,0.0002,20]
[403011024,1769057445993,-150.0,0.0002,2]
[403011025,1769057446003,-205.37909882,0.0002,2]
[403011026,1769057446012,-5427.26,0.0002,2]
[403011027,1769057446022,-297.85,0.0002,2]
[403011028,1769057446032,-791.0,0.0002,2]
[403011029,1769057446041,-9645.0,0.0002,2]
[403011030,1769057446052,-404.0,0.0002,120]
[403011031,1769057446062,-504.14113878,0.0002,3]
[403011032,1769057446073,-1200.0,0.0002,5]
[403011033,1769057446083,-8542.7655677,0.0002,3]
[403011034,1769057446094,-1901.90054287,0.0002,3]
[403011035,1769057446103,-163738.97824923,0.0002,7]
[403011036,1769057446113,-10773.97422591,0.0002,2]
[403011037,1769057446122,-151.0,0.0002,2]
[403011038,1769057446132,-151.0,0.0002,2]
[403011039,1769057446142,-151.0,0.0002,2]
[403011040,1769057446152,-190.157131,0.0002,2]
[403011041,1769057446161,-151.0,0.0002,2]
[403011042,1769057446171,-224.689584,0.0002,2]
[403011043,1769057446181,-151.0,0.0002,2]
[403011044,1769057446191,-151.0,0.0002,2]
[403011045,1769057446200,-151.0,0.0002,2]
[403011046,1769057446210,-151.0,0.0002,2]
[403011047,1769057446219,-151.0,0.0002,2]
[403011048,1769057446229,-151.0,0.0002,2]
[403011049,1769057446239,-151.0,0.0002,2]
[403011050,1769057446249,-151.0,0.0002,2]
[403011051,1769057446258,-151.0,0.0002,2]
[403011052,1769057446268,-151.0,0.0002,2]
[403011053,1769057446277,-151.0,0.0002,2]
[403011054,1769057446474,-151.0,0.0002,2]
[403011055,1769057446485,-151.0,0.0002,2]
[403011056,1769057446494,-151.0,0.0002,2]
[403011057,1769057446504,-151.0,0.0002,2]
[403011058,1769057446514,-151.0,0.0002,2]
[403011059,1769057446526,-151.0,0.0002,2]
[403011060,1769057446535,-261.247433,0.0002,2]
[403011061,1769057446544,-151.0,0.0002,2]
[403011062,1769057446554,-151.0,0.0002,2]
[403011063,1769057446564,-151.0,0.0002,2]
[403011064,1769057446573,-159.613964,0.0002,2]
[403011065,1769057446582,-301.105307,0.0002,2]
[403011066,1769057446591,-189.598064,0.0002,2]
[403011067,1769057446599,-189.598064,0.0002,2]
[403011068,1769057446609,-189.598064,0.0002,2]
[403011069,1769057446619,-189.598064,0.0002,2]
[403011070,1769057446628,-189.598064,0.0002,2]
[403011071,1769057446637,-189.598064,0.0002,2]
[403011072,1769057446646,-189.598064,0.0002,2]
[403011073,1769057446655,-189.598064,0.0002,2]
[403011074,1769057446665,-189.598064,0.0002,2]
[403011075,1769057446674,-189.598064,0.0002,2]
[403011076,1769057446684,-189.598064,0.0002,2]
[403011077,1769057446694,-189.598064,0.0002,2]
[403011078,1769057446703,-189.598064,0.0002,2]
[403011079,1769057446712,-189.598064,0.0002,2]
[403011080,1769057446722,-189.598064,0.0002,2]
[403011081,1769057446731,-189.598064,0.0002,2]
[403011082,1769057446740,-189.598064,0.0002,2]
[403011083,1769057446749,-189.598064,0.0002,2]
[403011084,1769057446758,-189.598064,0.0002,2]
[403011085,1769057446768,-189.598056,0.0002,2]
[403011086,1769057446777,-151.0,0.0002,2]
[403011087,1769057446787,-151.0,0.0002,2]
[403011088,1769057446796,-151.0,0.0002,2]
[403011089,1769057446805,-151.0,0.0002,2]
[403011090,1769057446814,-151.0,0.0002,2]
[403011091,1769057446823,-151.0,0.0002,2]
[403011092,1769057446833,-38000.0,0.0002,3]
[403011093,1769057446841,-153.509927,0.0002,2]
[403011094,1769057446850,-151.0,0.0002,2]
[403011095,1769057446859,-231.252762,0.0002,2]
[403011096,1769057446869,-151.0,0.0002,2]
[403011097,1769057446878,-151.0,0.0002,2]
[403011098,1769057446887,-151.0,0.0002,2]
[403011099,1769057446895,-151.0,0.0002,2]
[403011100,1769057446904,-151.0,0.0002,2]
[403011101,1769057446914,-151.0,0.0002,2]
[403011102,1769057446923,-151.0,0.0002,2]
[403011103,1769057446932,-151.0,0.0002,2]
[403011104,1769057446941,-151.0,0.0002,2]
[403011105,1769057446950,-151.0,0.0002,2]
[403011106,1769057446959,-151.0,0.0002,2]
[403011107,1769057446968,-151.0,0.0002,2]
[403011108,1769057446977,-151.0,0.0002,2]
[403011109,1769057446987,-151.0,0.0002,2]
[403011110,1769057446995,-151.0,0.0002,2]
[403011111,1769057447005,-151.0,0.0002,2]
[403011112,1769057447014,-151.0,0.0002,2]
[403011113,1769057447023,-151.0,0.0002,2]
[403011114,1769057447032,-207.566811,0.0002,2]
[403011115,1769057447042,-151.0,0.0002,2]
[403011116,1769057447051,-151.0,0.0002,2]
[403011117,1769057447060,-151.0,0.0002,2]
[403011118,1769057447069,-282.243493,0.0002,2]
[403011119,1769057447079,-151.0,0.0002,2]
[403011120,1769057447088,-151.0,0.0002,2]
[403011121,1769057447098,-151.0,0.0002,2]
[403011122,1769057447107,-151.0,0.0002,2]
[403011123,1769057447116,-151.0,0.0002,2]
[403011124,1769057447125,-151.0,0.0002,2]
[403011125,1769057447134,-151.0,0.0002,2]
[403011126,1769057447143,-151.0,0.0002,2]
[403011127,1769057447152,-151.0,0.0002,2]
[403011128,1769057447161,-151.0,0.0002,2]
[403011129,1769057447170,-258.756218,0.0002,2]
[403011130,1769057447179,-151.0,0.0002,2]
[403011131,1769057447187,-151.0,0.0002,2]
[403011132,1769057447196,-151.0,0.0002,2]
[403011133,1769057447205,-206.405957,0.0002,2]
[403011134,1769057447214,-151.0,0.0002,2]
[403011135,1769057447222,-151.0,0.0002,2]
[403011136,1769057447231,-151.0,0.0002,2]
[403011137,1769057447240,-260.270495,0.0002,2]
[403011138,1769057447248,-1000.0,0.0002,5]
[403011139,1769057447258,-151.0,0.0002,2]
[403011140,1769057447267,-221.665016,0.0002,2]
[403011141,1769057447275,-239.22425,0.0002,2]
[403011142,1769057447285,-239.22425,0.0002,2]
[403011143,1769057447294,-239.22425,0.0002,2]
[403011144,1769057447303,-239.22425,0.0002,2]
[403011145,1769057447312,-239.22425,0.0002,2]
[403011146,1769057447325,-239.22425,0.0002,2]
[403011147,1769057447339,-239.22425,0.0002,2]
[403011148,1769057447348,-239.22425,0.0002,2]
[403011149,1769057447357,-239.22425,0.0002,2]
[403011150,1769057447367,-239.22425,0.0002,2]
[403011151,1769057447378,-239.22425,0.0002,2]
[403011152,1769057447387,-239.22425,0.0002,2]
[403011153,1769057447398,-239.22425,0.0002,2]
[403011154,1769057447407,-239.22425,0.0002,2]
[403011155,1769057447416,-239.22425,0.0002,2]
[403011156,1769057447426,-239.224258,0.0002,2]
[403011157,1769057447435,-151.0,0.0002,2]
[403011158,1769057447444,-252.65247,0.0002,2]
[403011159,1769057447454,-252.65247,0.0002,2]
[403011160,1769057447463,-252.65247,0.0002,2]
[403011161,1769057447472,-252.65247,0.0002,2]
[403011162,1769057447481,-151.0,0.0002,2]
[403011163,1769057447491,-151.0,0.0002,2]
[403011164,1769057447500,-252.65247,0.0002,2]
[403011165,1769057447510,-286.103438,0.0002,2]
[403011166,1769057447519,-252.65247,0.0002,2]
[403011167,1769057447528,-252.65247,0.0002,2]
[403011168,1769057447538,-252.65247,0.0002,2]
[403011169,1769057447547,-252.65247,0.0002,2]
[403011170,1769057447556,-252.65247,0.0002,2]
[403011171,1769057447565,-151.0,0.0002,2]
[403011172,1769057447574,-252.65247,0.0002,2]
[403011173,1769057447584,-196.634137,0.0002,2]
[403011174,1769057447593,-252.65247,0.0002,2]
[403011175,1769057447603,-252.65247,0.0002,2]
[403011176,1769057447613,-252.65247,0.0002,2]
[403011177,1769057447622,-252.65247,0.0002,2]
[403011178,1769057447631,-252.65246,0.0002,2]
[403011179,1769057447641,-168.674893,0.0002,2]
[403011180,1769057447650,-168.674893,0.0002,2]
[403011181,1769057447659,-168.674893,0.0002,2]
[403011182,1769057447670,-168.674893,0.0002,2]
[403011183,1769057447680,-168.674893,0.0002,2]
[403011184,1769057447690,-168.674893,0.0002,2]
[403011185,1769057447699,-168.674893,0.0002,2]
[403011186,1769057447708,-168.674893,0.0002,2]
[403011187,1769057447717,-168.674893,0.0002,2]
[403011188,1769057447726,-168.674893,0.0002,2]
[403011189,1769057447737,-168.674893,0.0002,2]
[403011190,1769057447746,-168.674893,0.0002,2]
[403011191,1769057447755,-168.674893,0.0002,2]
[403011192,1769057447765,-168.674893,0.0002,2]
[403011193,1769057447774,-168.674893,0.0002,2]
[403011194,1769057447783,-168.674902,0.0002,2]
[403011195,1769057447792,-157.918352,0.0002,2]
[403011196,1769057447802,-157.918352,0.0002,2]
[403011197,1769057447812,-157.918352,0.0002,2]
[403011198,1769057447823,-157.918352,0.0002,2]
[403011199,1769057447832,-157.918352,0.0002,2]
[403011200,1769057447841,-157.918352,0.0002,2]
[403011201,1769057447851,-157.918352,0.0002,2]
[403011202,1769057447860,-157.918352,0.0002,2]
[403011203,1769057447870,-157.918352,0.0002,2]
[403011204,1769057447880,-157.918352,0.0002,2]
[403011205,1769057447889,-157.918352,0.0002,2]
[403011206,1769057447898,-157.918352,0.0002,2]
[403011207,1769057447908,-157.918352,0.0002,2]
[403011208,1769057447918,-157.918352,0.0002,2]
[403011209,1769057447928,-157.918352,0.0002,2]
[403011210,1769057447938,-157.918351,0.0002,2]
[403011211,1769057447947,-250.0,0.0002,10]
[403011212,1769057447956,-373.872213,0.0002,2]
[403011213,1769057447966,-373.872213,0.0002,2]
[403011214,1769057447975,-373.872213,0.0002,2]
[403011215,1769057447985,-373.872213,0.0002,2]
[403011216,1769057447995,-373.872213,0.0002,2]
[403011217,1769057448004,-373.872213,0.0002,2]
[403011218,1769057448014,-373.872213,0.0002,2]
[403011219,1769057448023,-373.872213,0.0002,2]
[403011220,1769057448033,-373.872213,0.0002,2]
[403011221,1769057448042,-373.872213,0.0002,2]
[403011222,1769057448051,-373.872213,0.0002,2]
[403011223,1769057448060,-373.872213,0.0002,2]
[403011225,1769057448070,-373.872213,0.0002,2]
[403011226,1769057448079,-373.872213,0.0002,2]
[403011227,1769057448089,-373.872213,0.0002,2]
[403011228,1769057448099,-373.872219,0.0002,2]
[403011229,1769057448110,-38000.0,0.0002,3]
[403011230,1769057448119,-150.0,0.0002,2]
[403011232,1769057448128,-300.16784562,0.0002,2]
[403011234,1769057448137,-2000.0,0.0002,7]
[403011236,1769057448147,-1001.626949,0.0002,2]
[403011238,1769057448156,-608.99563218,0.00020093,7]
[403011240,1769057448166,-811.99417624,0.00020093,7]
[403011242,1769057448175,-695.9950082,0.00020093,7]
[403011244,1769057448185,-250.0,0.000201,10]
[403011246,1769057448194,-6750.7956725,0.000201,2]
[403011248,1769057448203,-3064.56,0.00020165,3]
[403011250,1769057448212,-1532.28,0.00020165,3]
[403011252,1769057448221,-766.14,0.00020165,3]
[403011254,1769057448231,-383.08,0.00020165,3]
[403011256,1769057448241,-420.0,0.00020178,2]
[403011258,1769057448250,-10041.38689454,0.000202,2]
[403011260,1769057448260,-250.0,0.000202,10]
[403011262,1769057448269,-2609.36067501,0.0002022,59]
[403011264,1769057448279,-890.0,0.00020276,2]
[403011266,1769057448287,-250.0,0.000203,10]
[403011268,1769057448296,-10773.97422591,0.000204,2]
[403011270,1769057448306,-10041.38689454,0.000204,2]
[403011272,1769057448318,-250.0,0.000204,10]
[403011274,1769057448326,-250.0,0.000205,10]
[403011276,1769057448340,-2000.0,0.000205,7]
[403011278,1769057448350,-7103.13,0.00020547,2]
[403011280,1769057448358,-1900.0,0.000206,2]
[403011282,1769057448367,-250.0,0.000206,10]
[403011284,1769057448376,-250.0,0.000207,10]
[403011286,1769057448386,-250.0,0.000208,10]
[403011288,1769057448395,-250.0,0.000209,10]
[403011290,1769057448404,-1660.12928608,0.00021,12]
[403011292,1769057448414,-1117.52,0.00021,14]
[403011294,1769057448423,-2000.0,0.00021,14]
[403011296,1769057448431,-9194.25228731,0.00021,5]
[403011298,1769057448441,-277.55843501,0.00021,2]
[403011301,1769057448450,-1563.4836656,0.00021,10]
[403011303,1769057448462,-50000.0,0.00021,2]
[403011305,1769057448471,-9787.0,0.00021,2]
[403011307,1769057448480,-1000.0,0.00021,2]
[403011309,1769057448490,-3000.0,0.00021,2]
[403011311,1769057448499,-10041.38689454,0.00021,2]
[403011313,1769057448508,-250.0,0.00021,10]
[403011315,1769057448518,-150.0,0.00021,2]
[403011317,1769057448527,-2000.0,0.00021,7]
[403011319,1769057448536,-3000.0,0.0002101,2]
[403011321,1769057448545,-3000.0,0.0002102,2]
[403011323,1769057448555,-3000.0,0.0002103,2]
[403011325,1769057448564,-3000.0,0.0002104,2]
[403011327,1769057448573,-3000.0,0.0002105,2]
[403011329,1769057448582,-3000.0,0.0002106,2]
[403011331,1769057448591,-3000.0,0.0002107,2]
[403011333,1769057448601,-3000.0,0.0002108,2]
[403011335,1769057448610,-3000.0,0.0002109,2]
[403011337,1769057448619,-3000.0,0.000211,2]
[403011339,1769057448629,-250.0,0.000211,10]
[403011341,1769057448638,-3000.0,0.0002111,2]
[403011343,1769057448648,-3000.0,0.0002112,2]
[403011345,1769057448657,-3000.0,0.0002113,2]
[403011347,1769057448667,-3000.0,0.0002114,2]
[403011349,1769057448676,-3000.0,0.0002115,2]
[403011351,1769057448685,-3000.0,0.0002116,2]
[403011353,1769057448694,-3000.0,0.0002117,2]
[403011355,1769057448703,-3000.0,0.0002118,2]
[403011357,1769057448712,-3000.0,0.0002119,2]
[403011359,1769057448722,-1000.0,0.000212,15]
[403011361,1769057448731,-5427.26,0.000212,2]
[403011363,1769057448739,-297.85,0.000212,2]
[403011365,1769057448749,-3000.0,0.000212,2]
[403011367,1769057448758,-3000.0,0.0002121,2]
[403011370,1769057448767,-3000.0,0.0002122,2]
[403011371,1769057448777,-6750.79567243,0.00021222,2]
[403011373,1769057448786,-3000.0,0.0002123,2]
[403011375,1769057448797,-3000.0,0.0002124,2]
[403011377,1769057448809,-3000.0,0.0002125,2]
[403011379,1769057448818,-3000.0,0.0002126,2]
[403011381,1769057448828,-53103.45165032,0.00021267,7]
[403011437,1769057449328,150.0,0.0001007,2]
[403011442,1769057449365,150.0,0.00010527,2]
[403011448,1769057449414,150.0,0.00010985,2]
[403011454,1769057449462,150.0,0.00011443,2]
[403011459,1769057449498,150.0,0.00011901,2]
[403011463,1769057449526,150.0,0.00012358,2]
[403011468,1769057449563,162.28,0.00012816,2]
[403011473,1769057449596,182.56,0.00013274,2]
[403011477,1769057449627,198.93515595,0.00013731,2]
[403014565,1769057516871,-164.45,0.00014308,2]
[403014566,1769057516895,-269.52845484,0.00014989,2]
[403014567,1769057521072,-59.38154516,0.00014989,2]
[403014568,1769057521098,-393.79267877,0.00015671,2]
[403014569,1769057523787,-99.56732123,0.00015671,2]
[403014570,1769057523816,-192.85816532,0.00016352,2]
[403014571,1769057526636,-152.44732311,0.00016352,2]
[403014572,1769057606409,-160.02,0.00014352,2]
[403014573,1769057606433,-96.87669097,0.00015036,2]
[403014574,1769057608369,-223.15330903,0.00015036,2]
[403014575,1769057608395,-125.04427008,0.00015719,2]
[403014576,1769057609812,-302.75978558,0.00015719,2]
[403014577,1769057652430,-52.24594434,0.00015719,2]
[403014578,1769057652454,-179.22284543,0.00016402,2]
[403014579,1769057681333,-160.02,0.00014313,2]
[403014580,1769057681356,-320.03,0.00014995,2]
[403014581,1769057681381,-105.12093069,0.00015676,2]
[403014582,1769057682843,-182.02919029,0.00015676,2]
[403014583,1769057831378,-160.02,0.00014346,2]
[403014584,1769057831405,-61.71000003,0.00014688,2]
[403014585,1769057981335,-160.8,0.00014408,2]
[403014586,1769057981362,-88.28999997,0.00014688,2]
[403014587,1769057981389,-90.42094626,0.00015094,2]
[403014588,1769058121272,-314.27026519,0.00015094,2]
[403014589,1769058151317,-168.85,0.00014431,2]
[403014590,1769058151350,-83.35922906,0.00014763,2]
[403014591,1769058187567,5001.417,0.00014313,2]
[403014616,1769058631807,-173.91,0.00014434,2]
[403014618,1769058631818,-115.25150226,0.00014763,2]
[403014620,1769058631827,-10.88049774,0.00015121,2]
[403014622,1769058631861,-336.93950226,0.00015121,2]
[403014623,1769058631871,-521.73,0.00015809,2]
[403014624,1769058631880,-695.64,0.00016496,2]
[403014625,1769058631889,-869.56,0.00017183,2]
[403014626,1769058631899,-1043.47,0.00017795,2]
[403014627,1769058631913,-1217.38,0.00018479,2]
[403014628,1769058631922,-160.0,0.00018767,3]
[403014629,1769058631931,-2150.738,0.00019086,2]
[403014630,1769058631941,-417.0,0.000191,2]
[403014631,1769058631951,-178.0,0.000191,2]
[403014632,1769058631960,-1391.29,0.00019163,2]
[403014633,1769058631969,-360.0,0.0001923,120]
[403014634,1769058631979,-1565.2,0.00019848,2]
[403014635,1769058631988,-300.0,0.00019882,2]
[403014636,1769058631997,-500.0,0.00019999,2]
[403014637,1769058632006,-371.07082565,0.00019999,2]
[403014724,1769058640451,-3e-08,0.00019999,2]
[403014987,1769058643271,-95.2677894,0.00019999,2]
[403014989,1769058643281,-279.36891245,0.00019999,2]
[403014991,1769058643290,-169.51329815,0.00019999,2]
[403015025,1769058646067,-330.48670185,0.00019999,2]
[403015026,1769058646076,-265.30545807,0.00019999,2]
[403015027,1769058646085,-3545.44374614,0.0002,3]
[403015028,1769058646177,-9238.74384433,0.0002,3]
[403015029,1769058858075,-150.0,0.00014409,2]
[403015030,1769058906649,-150.0,0.00014452,2]
[403015031,1769059208080,-150.0,0.00014536,2]
[403015032,1769059208125,-628.0,0.00014536,2]
[403015034,1769059511439,-150.0,0.0001454,2]
[403015039,1769059814855,-150.0,0.00014581,2]
[403015040,1769059814885,-629.0,0.00014581,2]
[403015146,1769059838148,-170.16,0.00015244,2]
[403015147,1769059838158,-255.24,0.00015937,2]
[403015148,1769059838167,-340.32,0.0001663,2]
[403015149,1769059838176,-300.0,0.00017009,2]
[403015150,1769059838186,-1200.0,0.00017009,2]
[403015151,1769059838195,-5158.42995984,0.0001701,3]
[403015152,1769059838760,-9927.57080365,0.0001701,3]
[403015153,1769059838772,-1379.5,0.0001701,3]
[403015160,1769059840395,-1376.99468657,0.0001701,3]
[403015161,1769059840451,-1306.50365617,0.0001701,3]
[403015171,1769059843225,-843.63,0.0001701,3]
[403015178,1769059846128,-3126.48,0.0001701,3]
[403015179,1769059846246,-13340.92240017,0.0001701,3]
[403015180,1769059891951,150.0,0.00014528,2]
[403015181,1769059969789,150.0,0.00014511,2]
[403015182,1769060048540,150.0,0.00014399,2]
[403015183,1769060131781,-150.0,0.00014418,2]
[403015184,1769060176327,-169.56,0.00015105,2]
[403015185,1769060176353,-150.0,0.00015548,2]
[403015186,1769060176380,-226.21379763,0.00015791,2]
[403015187,1769060202636,150.0,0.0001444,2]
[403015188,1769060236382,-155.67,0.00015128,2]
[403015189,1769060236408,-153.11,0.00015815,2]
[403015190,1769060282341,150.0,0.00014455,2]
[403015191,1769060297202,-151.85,0.00015143,2]
[403015192,1769060297228,-77.33125776,0.00015488,2]
[403015193,1769060341953,-72.66874224,0.00015488,2]
[403015194,1769060342212,-211.76125776,0.00015832,2]
[403015195,1769060363076,150.0,0.00014574,2]
[403015196,1769060363937,-152.11951346,0.00015143,2]
[403015197,1769060416313,-13.88048654,0.00015143,2]
[403015198,1769060416337,-168.95889854,0.00015143,2]
[403015199,1769060419628,-454.71110146,0.00015143,2]
[403015200,1769060521256,150.0,0.00014502,2]
[403015201,1769060536950,-14.33,0.00015143,2]
[403015202,1769060536976,-154.77,0.00015193,2]
[403015203,1769060537002,-93.61,0.00015883,2]
[403015204,1769060587453,-138.54,0.00015883,2]
[403015205,1769060587481,-2007.0,0.00016,2]
[403015206,1769060587511,-309.53,0.00016574,2]
[403015207,1769060587538,-523.3,0.00017,5]
[403015208,1769060587566,-2000.0,0.00017,2]
[403015209,1769060587817,-1200.0,0.00017008,2]
[403015210,1769060587846,-300.0,0.00017008,2]
[403015211,1769060587874,-500.0,0.00017009,2]
[403015212,1769060587903,-500.0,0.00017009,2]
[403015213,1769060587932,-500.0,0.00017009,2]
[403015214,1769060587964,-500.0,0.00017009,2]
[403015215,1769060587995,-500.0,0.00017009,2]
[403015216,1769060588023,-297.9914878,0.00017009,2]
[403015217,1769060588052,-500.0,0.00017009,2]
[403015218,1769060588097,-500.0,0.00017009,2]
[403015219,1769060588127,-500.0,0.00017009,2]
[403015220,1769060588154,-500.0,0.00017009,2]
[403015221,1769060588185,-500.0,0.00017009,2]
[403015222,1769060588214,-500.0,0.00017009,2]
[403015223,1769060588244,-500.0,0.00017009,2]
[403015224,1769060588275,-500.0,0.00017009,2]
[403015225,1769060588307,-633.07337345,0.00017009,2]
[403015226,1769060588337,-419.70230727,0.00017009,2]
[403015227,1769060588368,-394.45863856,0.00017009,2]
[403015228,1769060588510,-105.54136144,0.00017009,2]
[403015229,1769060588542,-500.0,0.00017009,2]
[403015230,1769060588573,-364.72115821,0.00017009,2]
[403015231,1769060588604,-500.0,0.00017009,2]
[403015232,1769060588633,-500.0,0.00017009,2]
[403015233,1769060588663,-500.0,0.00017009,2]
[403015234,1769060588698,-634.34547043,0.00017009,2]
[403015235,1769060588731,-500.0,0.00017009,2]
[403015236,1769060588761,-312.17580465,0.00017009,2]
[403015237,1769060588792,-212.95580338,0.00017009,2]
[403015238,1769060588822,-500.0,0.00017009,2]
[403015239,1769060588852,-240.53080378,0.00017009,2]
[403015240,1769060589191,-259.46919622,0.00017009,2]
[403015241,1769060589219,-500.0,0.00017009,2]
[403015242,1769060589248,-152.97613697,0.00017009,2]
[403015243,1769060591452,-2100.50491211,0.0001701,3]
[403015244,1769060591470,-10000.01,0.0001701,3]
[403015245,1769060591491,-10000.01,0.0001701,3]
[403015246,1769060593350,-10000.01,0.0001701,3]
[403015247,1769060593493,-10000.01,0.0001701,3]
[403015248,1769060593606,-10000.01,0.0001701,3]
[403015249,1769060593749,-4494.91722177,0.0001701,3]
[403015250,1769060593787,-177.0,0.00017488,2]
[403015251,1769060593834,-656.17555646,0.000176,5]
[403015252,1769060593882,-266.41444354,0.000176,5]
[403015253,1769060593910,-180.0,0.00017859,2]
[403015254,1769060593937,-176.9443196,0.00017859,2]
[403015255,1769060593965,-2000.0,0.00018,2]
[403015256,1769060593998,-420.0,0.00018576,2]
[403015257,1769060594043,-541.68,0.00018646,2]
[403015258,1769060594080,-170.0,0.00018822,3]
[403015259,1769060598902,150.0,0.00014474,2]
[403015260,1769060599328,150.0,0.00015164,2]
[403015261,1769060599759,216.57,0.00015853,2]
[403015262,1769060600194,288.76,0.00016542,2]
[403015263,1769060600586,360.95,0.00017231,2]
[403015264,1769060600988,433.13,0.00017921,2]
[403015265,1769060601402,505.32,0.0001861,2]
[403015267,1769060672184,202.43,0.00014495,2]
[403015269,1769060832051,199.85,0.000145,2]
[403015270,1769060911980,197.31,0.00014511,2]
[403015271,1769060992673,194.8,0.00014398,2]
[403015309,1769061038314,-389.59,0.00015084,2]
[403015310,1769061038323,-584.39,0.00015769,2]
[403015311,1769061038332,-779.19,0.00016455,2]
[403015312,1769061038341,-973.98,0.0001714,2]
[403015313,1769061038350,-1168.78,0.00017826,2]
[403015314,1769061038359,-1363.57,0.00018512,2]
[403015315,1769061038368,-192.0,0.00018932,3]
[403015316,1769061038376,-300.0,0.00018951,2]
[403015317,1769061038385,-1200.0,0.00018951,2]
[403015318,1769061038394,-507.962096,0.00018952,2]
[403015319,1769061038403,-903.04372622,0.00018952,2]
[403015320,1769061038413,-282.20116444,0.00018952,2]
[403015321,1769061038421,-366.13477141,0.00018977,2]
[403015322,1769061038430,-2000.0,0.00019,2]
[403015323,1769061038440,-213.014,0.00019163,2]
[403015324,1769061038448,-804.08012487,0.00019197,2]
[403015325,1769061038460,-754.28987513,0.00019197,2]
[403015326,1769061038468,-417.0,0.00019656,2]
[403015327,1769061038477,-178.0,0.00019656,2]
[403015328,1769061038486,-262.74679536,0.00019799,2]
[403015329,1769061038494,-245.88397815,0.00019799,2]
[403015330,1769061038503,-157.74470081,0.00019799,2]
[403015331,1769061038513,-237.14949671,0.00019799,2]
[403015333,1769061038522,-514.78593038,0.00019799,2]
[403015335,1769061038531,-29318.0,0.000198,2]
[403015337,1769061038540,-1753.17,0.00019883,2]
[403015339,1769061038548,-2000.0,0.0002,2]
[403015341,1769061038558,-25215.81240953,0.0002,3]
[403015343,1769061038567,-150.0,0.0002,5]
[403015345,1769061038575,-265.0,0.0002,120]
[403015347,1769061038584,-250.0,0.0002,10]
[403015349,1769061038593,-250.0,0.00020026,2]
[403015351,1769061038602,-250.0,0.00020026,2]
[403015353,1769061038611,-250.0,0.00020026,2]
[403015355,1769061038619,-250.0,0.00020026,2]
[403015356,1769061038628,-250.0,0.00020026,2]
[403015358,1769061038637,-250.0,0.00020026,2]
[403015360,1769061038647,-250.0,0.00020026,2]
[403015362,1769061038655,-168.3888056,0.00020026,2]
[403015363,1769061038665,-174.61919141,0.00020026,2]
[403015364,1769061038674,-181.08010149,0.00020026,2]
[403015365,1769061038682,-2230.315306,0.00020026,2]
[403015366,1769061038691,-187.78006525,0.00020026,2]
[403015367,1769061038700,-194.72792766,0.00020026,2]